bitfinex-derivatives/quotes_SOLF0:USTF0_20250520
["timestamp","ask_amount","ask_price","bid_price","bid_amount"]
[1747757490742,62.82,166.11,166.01,3.8895]
[1747757491443,0.04368405,166.08,166.04,0.04567212]
[1747757492043,0.04368405,166.08,166.07,6.0189]
[1747757493844,0.04368405,166.08,166.06,6.0195]
[1747757494047,0.04368405,166.08,166.04,62.86567212]
[1747757494750,0.04368405,166.08,166.05,6.0197]
[1747757495242,0.04368405,166.08,166.04,62.86567212]
[1747757495452,62.82,166.14,166.04,62.86567212]
[1747757495637,62.82,166.14,166.04,62.82]
[1747757495837,68.8369,166.14,166.04,62.82]
[1747757496646,0.04634584,166.11,166.1,6.018]
[1747757497350,0.04634584,166.11,166.09,6.06087596]
[1747757497555,0.04634584,166.11,166.09,0.04247596]
[1747757500552,0.04634584,166.11,166.1,6.0181]
[1747757500747,0.04634584,166.11,166.09,0.04247596]
[1747757501652,0.04634584,166.11,166.09,6.06077596]
[1747757501852,0.04634584,166.11,166.09,0.04247596]
[1747757502650,0.04634584,166.11,166.1,6.0181]
[1747757504756,0.04634584,166.11,166.09,0.04247596]
[1747757505049,62.8,166.19,166.09,0.04247596]
[1747757505258,62.8,166.19,166.09,1.9842]
[1747757505449,68.815,166.19,166.09,1.9842]
[1747757505759,68.815,166.19,166.15,6.0162]
[1747757505955,68.815,166.19,166.09,1.9842]
[1747757506253,0.0417943,166.16,166.12,0.04016109]
[1747757506560,62.8,166.15,166.12,0.04016109]
[1747757506757,6.017,166.13,166.12,0.04016109]
[1747757511258,6.0188,166.08,166.05,1.50491577]
[1747757511657,62.6,166.11,166.05,1.50491577]
[1747757511853,6.0187,166.09,166.05,1.50491577]
[1747757512255,6.05882535,166.09,166.06,6.0193]
[1747757513662,6.0189,166.08,166.05,6.06130104]
[1747757514260,0.04022535,166.09,166.05,0.04150104]
[1747757514760,6.0196,166.06,166.05,0.04150104]
[1747757515458,68.6193,166.07,166.05,0.04150104]
[1747757515957,0.04022535,166.09,166.08,6.0188]
[1747757516863,0.04022535,166.09,166.07,6.0191]
[1747757518359,0.04022535,166.09,166.05,0.04150104]
[1747757518861,0.04022535,166.09,166.06,6.0193]
[1747757519063,0.04022535,166.09,166.05,0.04150104]
[1747757519662,0.04022535,166.09,166.06,6.0192]
[1747757520864,0.04022535,166.09,166.07,6.0191]
[1747757521068,0.04022535,166.09,166.05,0.04150104]
[1747757521367,0.04022535,166.09,166.06,6.0193]
[1747757521665,0.04022535,166.09,166.05,0.04150104]
[1747757521856,0.04022535,166.09,166.08,6.0188]
[1747757522754,64.6224,166.15,166.11,6.0175]
[1747757522959,68.6161,166.16,166.05,2.0823]
[1747757523363,62.6,166.16,166.11,6.0176]
[1747757523560,6.0166,166.15,166.11,6.0176]
[1747757523756,0.0413373,166.15,166.11,0.03819504]
[1747757524151,6.0167,166.14,166.11,0.03819504]
[1747757524561,6.0167,166.14,166.11,6.05589504]
[1747757524867,6.0577373,166.15,166.11,6.05589504]
[1747757525254,0.0413373,166.15,166.11,0.03819504]
[1747757525660,6.0173,166.13,166.11,0.03819504]
[1747757526464,6.0174,166.12,166.11,0.03819504]
[1747757526868,1.9675373,166.15,166.11,0.03819504]
[1747757527467,2.08,166.14,166.05,1.50507154]
[1747757527765,6.0187,166.09,166.06,6.0195]
[1747757527954,62.6,166.1,166.05,1.50507154]
[1747757528154,62.6,166.1,166.04,1.9207]
[1747757528359,0.04579313,166.09,166.05,0.04560912]
[1747757529064,0.04579313,166.09,166.06,6.0194]
[1747757529770,6.06429313,166.09,166.06,6.0194]
[1747757530067,0.04579313,166.09,166.07,6.0192]
[1747757530270,0.04579313,166.09,166.05,0.04560912]
[1747757530569,0.04579313,166.09,166.05,1.55072273]
[1747757530866,0.04579313,166.09,166.08,6.0188]
[1747757531969,62.6,166.13,166.12,6.0174]
[1747757532162,62.6,166.16,166.12,6.0174]
[1747757532361,6.0167,166.14,166.06,3.59791361]
[1747757532561,6.0167,166.14,166.1,6.0179]
[1747757532769,62.6,166.16,166.1,6.0179]
[1747757532972,0.04224,166.15,166.11,0.03905471]
[1747757533580,6.0167,166.14,166.11,0.03905471]
[1747757533769,0.04224,166.15,166.11,0.03905471]
[1747757535070,6.0174,166.12,166.11,0.03905471]
[1747757535669,0.04224,166.15,166.11,0.03905471]
[1747757536062,6.0171,166.13,166.11,0.03905471]
[1747757536263,0.04224,166.15,166.11,0.03905471]
[1747757536467,10.15143442,166.15,166.11,0.03905471]
[1747757536971,6.0174,166.12,166.11,0.03905471]
[1747757537171,68.6174,166.12,166.11,0.03905471]
[1747757537469,6.0187,166.09,166.06,6.0195]
[1747757537864,62.6,166.12,166.05,1.50497745]
[1747757538067,6.019,166.08,166.05,7.52467745]
[1747757538264,72.70919442,166.12,166.06,1.50497745]
[1747757538464,0.04410663,166.08,166.06,1.50497745]
[1747757540274,6.06320663,166.08,166.05,6.05767712]
[1747757540470,6.06320663,166.08,166.05,0.03797712]
[1747757540972,0.04410663,166.08,166.05,0.03797712]
[1747757541360,63.22410663,166.08,166.05,0.03797712]
[1747757541559,6.0199,166.07,166.05,0.03797712]
[1747757542971,63.22410663,166.08,166.05,0.03797712]
[1747757544072,6.02,166.06,166.05,0.03797712]
[1747757544871,6.0198,166.07,166.05,0.03797712]
[1747757545173,63.22410663,166.08,166.05,0.03797712]
[1747757545362,63.22410663,166.08,166.06,6.02]
[1747757545965,63.22410663,166.08,166.05,6.05817712]
[1747757546265,6.0197,166.07,166.05,6.05817712]
[1747757546973,69.24350663,166.08,166.05,6.05817712]
[1747757547174,63.22410663,166.08,166.05,0.03797712]
[1747757548061,6.02,166.06,166.05,0.03797712]
[1747757550366,63.18,166.04,166.01,0.04009482]
[1747757550974,6.0211,166.03,166.01,0.04009482]
[1747757551979,69.2009,166.04,166.01,0.04009482]
[1747757552173,63.18,166.04,166.01,0.04009482]
[1747757553881,69.2011,166.04,166.01,6.06199482]
[1747757554278,63.18,166.04,166.01,0.04009482]
[1747757554476,6.0212,166.03,166.01,0.04009482]
[1747757554782,63.18,166.04,166.01,0.04009482]
[1747757555282,6.0216,166.02,166.01,0.04009482]
[1747757556382,63.18,166.04,166.01,0.04009482]
[1747757557586,69.201,166.04,166.02,6.0216]
[1747757559382,6.0212,166.03,166.01,6.06189482]
[1747757559889,69.201,166.04,166.02,6.0216]
[1747757561193,69.201,166.04,166.01,6.06189482]
[1747757561491,6.0213,166.03,166.01,6.06189482]
[1747757561693,6.0213,166.03,166.01,0.04009482]
[1747757562291,6.0213,166.03,166.01,6.06179482]
[1747757564686,63.18,166.04,166.02,6.0215]
[1747757565495,63.18,166.04,166.03,6.0212]
[1747757565697,0.04170294,166.05,166.01,0.04009482]
[1747757566199,0.04170294,166.05,166.04,6.0208]
[1747757566894,65.2228,166.11,166.01,73.34928924]
[1747757567100,63.2,166.11,166.02,2.0594]
[1747757567397,69.2185,166.11,166.08,6.0192]
[1747757567898,69.26073164,166.11,166.08,6.06045756]
[1747757568603,69.26073164,166.11,166.08,0.04125756]
[1747757568604,63.24223164,166.11,166.08,0.04125756]
[1747757570000,6.019,166.09,166.08,0.04125756]
[1747757570301,63.24223164,166.11,166.02,2.0594]
[1747757570498,6.021,166.04,166.01,6.0218]
[1747757570700,65.2674,166.11,165.99,1.50511995]
[1747757570701,63.2,166.07,165.99,1.50511995]
[1747757570904,63.2,166.06,165.99,1.50511995]
[1747757571199,6.0213,166.03,166.01,6.0219]
[1747757573003,6.0213,166.03,166.0,6.06235943]
[1747757573306,6.0213,166.03,166.0,0.04015943]
[1747757574211,6.06375984,166.04,166.01,6.0218]
[1747757574409,0.04275984,166.04,166.0,0.04015943]
[1747757574799,0.04275984,166.04,166.02,6.0213]
[1747757575410,6.06365984,166.04,166.01,6.0218]
[1747757576203,6.06365984,166.04,166.02,6.0215]
[1747757577111,6.06365984,166.04,166.01,6.0218]
[1747757577313,0.04275984,166.04,166.0,0.04015943]
[1747757577712,0.04275984,166.04,166.0,6.06235943]
[1747757577911,6.0215,166.03,166.0,6.06235943]
[1747757578113,0.04275984,166.04,166.0,0.04015943]
[1747757578310,6.0219,166.02,166.0,0.04015943]
[1747757581116,6.0219,166.01,166.0,0.04015943]
[1747757585222,6.0229,165.99,165.96,6.0237]
[1747757586123,6.06788479,165.99,165.96,6.05835327]
[1747757586816,6.0232,165.98,165.96,0.03465327]
[1747757587218,0.04498479,165.99,165.96,0.03465327]
[1747757588126,1.9157,166.03,165.96,0.03465327]
[1747757588127,62.68,166.03,165.96,0.03465327]
[1747757588417,62.68,166.03,165.97,1.50616072]
[1747757588622,62.68,166.03,166.01,6.0217]
[1747757588822,62.68,166.03,165.97,3.51996072]
[1747757589022,62.68,166.06,165.97,3.51996072]
[1747757589225,0.04609303,166.03,166.0,0.04180637]
[1747757589620,0.04609303,166.03,166.02,6.0216]
[1747757591125,0.04609303,166.03,166.02,7.52696724]
[1747757593321,9.303e-05,166.03,166.02,7.52696724]
[1747757593529,9.303e-05,166.03,166.02,70.20696724]
[1747757594526,68.6985,166.11,166.09,6.019]
[1747757594527,62.68,166.11,166.09,6.019]
[1747757595530,62.68,166.11,166.08,6.06047147]
[1747757595731,62.68,166.11,166.08,0.04117147]
[1747757596626,0.04331052,166.12,166.08,0.04117147]
[1747757598526,0.04331052,166.12,166.1,6.0184]
[1747757598930,0.04331052,166.12,166.08,0.04117147]
[1747757599927,0.04331052,166.12,166.11,6.0183]
[1747757602132,0.04331052,166.12,166.1,6.0186]
[1747757602323,0.04331052,166.12,166.08,0.04117147]
[1747757602733,0.04331052,166.12,166.1,6.0185]
[1747757603334,0.04331052,166.12,166.08,0.04117147]
[1747757603834,6.06131052,166.12,166.09,6.0188]
[1747757604336,6.0191,166.09,166.08,0.04117147]
[1747757608730,2.00671052,166.12,166.08,0.04117147]
[1747757608927,64.32671052,166.12,166.08,0.04117147]
[1747757609133,6.0189,166.1,166.08,0.04117147]
[1747757609328,64.32671052,166.12,166.08,0.04117147]
[1747757609638,6.0191,166.09,166.08,0.04117147]
[1747757610837,64.32671052,166.12,166.08,0.04117147]
[1747757610838,0.04331052,166.12,166.08,0.04117147]
[1747757611240,0.04331052,166.12,166.1,6.0185]
[1747757611429,0.04331052,166.12,166.08,0.04117147]
[1747757613033,6.0191,166.09,166.08,0.04117147]
[1747757614940,62.32,166.1,166.08,0.04117147]
[1747757615138,0.04331052,166.12,166.08,0.04117147]
[1747757615543,0.04331052,166.12,166.1,6.0185]
[1747757616142,0.04331052,166.12,166.08,0.04117147]
[1747757616445,6.06131052,166.12,166.09,6.0189]
[1747757616948,0.04331052,166.12,166.08,0.04117147]
[1747757617243,0.04331052,166.12,166.09,6.019]
[1747757617446,0.04331052,166.12,166.08,0.04117147]
[1747757617648,0.04331052,166.12,166.1,6.0185]
[1747757617947,0.04331052,166.12,166.08,0.04117147]
[1747757618148,0.04331052,166.12,166.11,6.0183]
[1747757624856,0.04331052,166.12,166.09,64.2204]
[1747757626057,0.04331052,166.12,166.11,6.0183]
[1747757629066,64.351,166.2,166.17,6.0162]
[1747757629263,62.3,166.2,166.09,74.32959442]
[1747757629470,68.3151,166.2,166.09,74.32959442]
[1747757629766,62.3,166.2,166.18,6.0158]
[1747757630365,0.03878307,166.21,166.2,6.0151]
[1747757630970,0.03878307,166.21,166.18,6.0157]
[1747757631670,0.03878307,166.21,166.19,6.0154]
[1747757631971,0.03878307,166.21,166.17,0.03970182]
[1747757632169,0.03878307,166.21,166.2,6.0151]
[1747757632873,0.03878307,166.21,166.18,6.0157]
[1747757633172,0.03878307,166.21,166.17,0.03970182]
[1747757633368,0.03878307,166.21,166.17,6.05570182]
[1747757633766,6.0154,166.2,166.17,6.05570182]
[1747757634371,6.0154,166.19,166.17,6.05570182]
[1747757634775,61.97878307,166.21,166.17,6.05570182]
[1747757635474,61.97878307,166.21,166.17,0.03970182]
[1747757636070,6.0153,166.2,166.17,6.05580182]
[1747757636976,61.97878307,166.21,166.17,0.03970182]
[1747757637176,0.03878307,166.21,166.17,0.03970182]
[1747757637779,0.03878307,166.21,166.2,6.0151]
[1747757639274,0.03878307,166.21,166.17,0.03970182]
[1747757640078,6.05368307,166.21,166.18,6.0157]
[1747757640278,0.03878307,166.21,166.17,0.03970182]
[1747757640580,6.0158,166.18,166.17,0.03970182]
[1747757641078,0.03878307,166.21,166.17,0.03970182]
[1747757641981,6.05368307,166.21,166.19,6.0154]
[1747757642782,6.05368307,166.21,166.18,6.0157]
[1747757643083,6.0151,166.2,166.18,6.0157]
[1747757644284,6.05358307,166.21,166.19,6.0154]
[1747757644581,0.03878307,166.21,166.17,0.03970182]
[1747757644980,0.03878307,166.21,166.2,6.0151]
[1747757645183,0.03878307,166.21,166.17,0.03970182]
[1747757645888,6.0155,166.19,166.17,6.05580182]
[1747757646387,0.03878307,166.21,166.17,0.03970182]
[1747757647083,6.0153,166.2,166.18,6.0158]
[1747757647485,0.03878307,166.21,166.18,6.0158]
[1747757647685,6.05368307,166.21,166.18,6.0158]
[1747757648185,0.03878307,166.21,166.17,0.03970182]
[1747757648391,0.03878307,166.21,166.2,6.0151]
[1747757648692,0.03878307,166.21,166.17,0.03970182]
[1747757649285,6.0156,166.19,166.17,0.03970182]
[1747757650393,6.0152,166.2,166.17,6.05580182]
[1747757651091,6.0155,166.19,166.17,6.05580182]
[1747757651284,6.0155,166.19,166.17,0.03970182]
[1747757651481,0.03878307,166.21,166.17,0.03970182]
[1747757652089,6.0158,166.18,166.17,0.03970182]
[1747757652494,6.0156,166.19,166.17,0.03970182]
[1747757654291,6.0158,166.18,166.17,0.03970182]
[1747757657798,6.0156,166.19,166.17,6.05580182]
[1747757657994,0.03878307,166.21,166.17,6.05580182]
[1747757658391,6.0152,166.2,166.17,6.05580182]
[1747757658591,0.03878307,166.21,166.17,0.03970182]
[1747757660197,6.0158,166.18,166.17,0.03970182]
[1747757665398,61.92,166.19,166.17,0.03970182]
[1747757665597,0.03878307,166.21,166.17,0.03970182]
[1747757665901,6.05348307,166.21,166.19,6.0152]
[1747757666100,0.03878307,166.21,166.17,0.03970182]
[1747757666499,6.0153,166.2,166.17,6.05570182]
[1747757667302,6.05368307,166.21,166.18,6.0156]
[1747757667505,0.03878307,166.21,166.18,6.0156]
[1747757668201,0.03878307,166.21,166.17,0.03970182]
[1747757668202,0.03878307,166.21,166.19,6.0154]
[1747757669403,0.03878307,166.21,166.18,6.0157]
[1747757669701,0.03878307,166.21,166.17,0.03970182]
[1747757669890,6.0158,166.18,166.17,0.03970182]
[1747757671194,61.66,166.19,166.1,64.66371972]
[1747757671403,10.10919442,166.17,166.1,1.02551972]
[1747757671599,10.10919442,166.14,166.1,1.02551972]
[1747757671801,61.66,166.16,166.1,1.02551972]
[1747757672001,61.66,166.16,166.1,7.04391972]
[1747757672304,6.0178,166.13,166.11,0.04576749]
[1747757672604,0.04404909,166.15,166.11,0.04576749]
[1747757673203,6.018,166.12,166.11,0.04576749]
[1747757677509,67.678,166.12,166.11,0.04576749]
[1747757678707,67.678,166.12,166.11,6.749e-05]
[1747757678913,6.0201,166.07,166.05,1.50500083]
[1747757679613,6.0201,166.06,166.03,8.0769]
[1747757679809,6.05924962,166.06,166.03,8.12233839]
[1747757680010,6.05924962,166.06,166.03,6.06653839]
[1747757680614,0.03914962,166.06,166.03,0.04543839]
[1747757681605,0.03914962,166.06,166.05,6.0205]
[1747757685910,0.03914962,166.06,166.04,6.0208]
[1747757686107,0.03914962,166.06,166.03,0.04543839]
[1747757686515,6.0206,166.05,166.03,0.04543839]
[1747757686909,0.03914962,166.06,166.03,0.04543839]
[1747757687210,6.05944962,166.06,166.03,6.06643839]
[1747757687410,0.03914962,166.06,166.03,0.04543839]
[1747757688217,6.0209,166.04,166.03,0.04543839]
[1747757691318,6.0207,166.05,166.03,0.04543839]
[1747757692407,0.03914962,166.06,166.03,0.04543839]
[1747757692814,0.03914962,166.06,166.05,6.0205]
[1747757694617,0.03914962,166.06,166.04,6.0207]
[1747757695217,0.03914962,166.06,166.03,0.04543839]
[1747757695419,6.05934962,166.06,166.03,6.06653839]
[1747757695822,0.03914962,166.06,166.04,6.0209]
[1747757696625,0.03914962,166.06,166.05,6.0205]
[1747757696925,0.03914962,166.06,166.03,0.04543839]
[1747757697221,0.03914962,166.06,166.05,6.0205]
[1747757697523,0.03914962,166.06,166.03,0.04543839]
[1747757698421,6.0209,166.04,166.03,0.04543839]
[1747757700433,67.5809,166.04,166.03,0.04543839]
[1747757700828,0.03914962,166.06,166.03,0.04543839]
[1747757702131,6.0209,166.04,166.03,0.04543839]
[1747757708243,67.5806,166.05,166.03,0.04543839]
[1747757708439,0.03914962,166.06,166.03,0.04543839]
[1747757709443,0.03914962,166.06,166.04,6.0207]
[1747757710144,0.03914962,166.06,166.05,6.0205]
[1747757710442,0.03914962,166.06,166.03,0.04543839]
[1747757710648,6.0209,166.04,166.03,0.04543839]
[1747757713143,0.03914962,166.06,166.03,0.04543839]
[1747757713742,6.0207,166.05,166.03,6.06653839]
[1747757713944,6.0207,166.05,166.03,0.04543839]
[1747757714337,6.0209,166.04,166.03,0.04543839]
[1747757717546,6.0207,166.05,166.03,0.04543839]
[1747757718051,0.03914962,166.06,166.05,6.0205]
[1747757718255,72.73792888,166.12,166.03,0.04543839]
[1747757718545,72.73792888,166.12,166.03,4.23583839]
[1747757718845,61.58,166.12,166.03,4.23583839]
[1747757719240,6.05759865,166.09,166.06,6.02]
[1747757719443,0.03829865,166.09,166.06,0.03962959]
[1747757719847,6.0195,166.08,166.06,0.03962959]
[1747757720144,0.03829865,166.09,166.06,0.03962959]
[1747757720547,6.05759865,166.09,166.06,6.05972959]
[1747757722042,0.03829865,166.09,166.07,6.0197]
[1747757722239,0.03829865,166.09,166.06,0.03962959]
[1747757722443,0.03829865,166.09,166.08,6.0194]
[1747757723346,520.04,166.16,166.06,61.57962959]
[1747757723648,153.15909347,166.17,166.06,61.54]
[1747757724049,6.0175,166.14,166.07,1.50477507]
[1747757724351,0.0406424,166.12,166.09,0.0436448]
[1747757724653,0.0406424,166.12,166.11,6.0183]
[1747757725252,153.15909347,166.17,166.14,6.017]
[1747757725451,153.15909347,166.17,166.1,1.9118]
[1747757725639,6.0169,166.15,166.1,63.4518]
[1747757726350,6.0562205,166.14,166.11,6.06237003]
[1747757726946,0.0389205,166.14,166.12,6.0179]
[1747757727354,0.0389205,166.14,166.11,0.04417003]
[1747757727852,0.0389205,166.14,166.13,6.0176]
[1747757729359,0.0389205,166.14,166.12,6.0178]
[1747757729652,0.0389205,166.14,166.11,0.04417003]
[1747757729856,6.0178,166.13,166.11,0.04417003]
[1747757730054,0.0389205,166.14,166.11,0.04417003]
[1747757730447,6.018,166.12,166.11,0.04417003]
[1747757731157,6.0192,166.09,166.07,7.52438258]
[1747757731348,61.54,166.12,166.07,6.0197]
[1747757731657,6.019,166.1,166.07,6.0197]
[1747757732057,6.06386785,166.1,166.07,6.05769087]
[1747757733358,6.06386785,166.1,166.08,6.0193]
[1747757733558,0.04486785,166.1,166.07,0.03799087]
[1747757734061,63.4834,166.18,166.12,6.0179]
[1747757734654,6.0171,166.15,166.12,6.0179]
[1747757735157,0.04279187,166.15,166.12,6.06219396]
[1747757735458,61.54,166.14,166.12,0.04429396]
[1747757736158,61.54,166.14,166.07,6.0197]
[1747757736353,63.597,166.14,166.07,6.0197]
[1747757737059,0.04257003,166.12,166.09,0.0426239]
[1747757737358,6.0187,166.1,166.09,0.0426239]
[1747757739661,67.5587,166.1,166.09,0.0426239]
[1747757740365,67.5587,166.1,166.09,2.39e-05]
[1747757740564,6.0211,166.04,166.01,8.071]
[1747757741163,6.0211,166.04,166.02,6.0215]
[1747757741463,6.06261313,166.05,166.02,6.0215]
[1747757741665,6.06261313,166.05,166.02,6.0613262]
[1747757741862,6.06261313,166.05,166.03,6.0212]
[1747757742359,6.06261313,166.05,166.02,6.0612262]
[1747757742867,0.04201313,166.05,166.02,0.0398262]
[1747757745372,6.0212,166.03,166.02,0.0398262]
[1747757747170,6.0211,166.04,166.02,0.0398262]
[1747757748071,6.06271313,166.05,166.02,6.0614262]
[1747757749073,6.021,166.04,166.02,0.0398262]
[1747757749270,0.04201313,166.05,166.02,0.0398262]
[1747757749570,6.0212,166.03,166.02,0.0398262]
[1747757750069,1.9172,166.04,166.02,0.0398262]
[1747757750271,0.04201313,166.05,166.02,0.0398262]
[1747757750969,0.04201313,166.05,166.04,6.0209]
[1747757754568,0.04201313,166.05,166.02,0.0398262]
[1747757754974,61.58201313,166.05,166.02,0.0398262]
[1747757755373,6.0212,166.03,166.02,0.0398262]
[1747757756074,71.7000961,166.05,165.98,1.50553989]
[1747757756274,10.11808297,166.02,165.98,1.50553989]
[1747757756465,61.54,166.01,165.98,1.50553989]
[1747757756667,6.023,165.99,165.96,2.29638]
[1747757756868,6.023,165.99,165.96,8.32008]
[1747757757167,6.06867916,165.99,165.96,2.34125564]
[1747757757478,0.04567916,165.99,165.96,8.36485564]
[1747757758379,0.04567916,165.99,165.96,2.34125564]
[1747757759178,0.04567916,165.99,165.97,6.0232]
[1747757759382,0.04567916,165.99,165.96,2.34125564]
[1747757759777,0.04567916,165.99,165.97,6.0232]
[1747757760183,0.04567916,165.99,165.96,2.34125564]
[1747757760377,0.04567916,165.99,165.87,1.02551972]
[1747757760680,16.20500635,165.97,165.87,1.02551972]
[1747757760877,6.0248,165.94,165.9,6.0257]
[1747757761181,63.4897,165.96,165.86,1.02551972]
[1747757761379,63.4897,165.96,165.89,6.05674109]
[1747757761682,0.04581687,165.93,165.89,0.03074109]
[1747757762182,0.04581687,165.93,165.92,6.0252]
[1747757766898,0.04581687,165.93,165.91,6.0253]
[1747757767284,0.04581687,165.93,165.91,6.0255]
[1747757768399,0.04581687,165.93,165.92,6.0252]
[1747757770400,0.04581687,165.93,165.89,1.86828109]
[1747757771111,0.04581687,165.93,165.91,6.0253]
[1747757772099,0.04581687,165.93,165.92,6.0252]
[1747757772802,0.04581687,165.93,165.91,6.0255]
[1747757773301,0.04581687,165.93,165.9,6.0259]
[1747757773895,0.04581687,165.93,165.91,6.0255]
[1747757774398,6.07071687,165.93,165.89,1.86828109]
[1747757775398,0.04581687,165.93,165.89,1.86828109]
[1747757776003,0.04581687,165.93,165.9,6.0257]
[1747757776202,0.04581687,165.93,165.89,1.86828109]
[1747757776604,0.04581687,165.93,165.9,6.0257]
[1747757776801,0.04581687,165.93,165.89,1.86828109]
[1747757777402,0.04581687,165.93,165.92,6.0252]
[1747757777706,520.4,166.04,165.91,61.58]
[1747757777900,61.58,166.02,165.92,1.92]
[1747757778797,0.04621623,165.99,165.95,0.04184016]
[1747757779296,61.58,166.02,166.0,6.0222]
[1747757779501,61.58,166.05,165.96,2.102]
[1747757779904,6.021,166.04,166.0,6.022]
[1747757780203,6.021,166.04,165.96,2.102]
[1747757780501,0.03893296,166.02,165.98,0.04274561]
[1747757780702,0.03893296,166.02,165.99,6.0226]
[1747757780999,0.03893296,166.02,165.98,0.04274561]
[1747757781803,61.58,166.08,165.98,0.04274561]
[1747757782102,6.0199,166.07,165.99,61.58]
[1747757782300,6.0199,166.07,166.0,1.956]
[1747757782700,0.04405648,166.05,166.02,0.04532586]
[1747757783209,0.04405648,166.05,166.04,6.0209]
[1747757783601,522.5684,166.12,166.03,1.9646]
[1747757783804,6.0193,166.09,166.05,6.0204]
[1747757784198,6.0193,166.09,166.03,64.4646]
[1747757784404,6.0195,166.08,166.03,64.4646]
[1747757784607,0.03911251,166.09,166.06,0.04421269]
[1747757785406,84.50643826,166.16,166.06,0.04421269]
[1747757785601,84.50643826,166.16,166.07,62.5]
[1747757785602,80.46093826,166.16,166.07,62.5]
[1747757785807,80.46093826,166.16,166.08,62.5]
[1747757786007,80.46093826,166.16,166.13,6.0175]
[1747757786313,80.46093826,166.16,166.09,62.5]
[1747757786511,0.03830786,166.14,166.11,6.05861477]
[1747757786712,0.03830786,166.14,166.11,0.04051477]
[1747757788010,0.03830786,166.14,166.11,6.05861477]
[1747757788304,0.03830786,166.14,166.11,0.04051477]
[1747757788509,62.5,166.21,166.11,0.04051477]
[1747757788704,6.0159,166.18,166.14,6.017]
[1747757788906,62.5,166.21,166.11,1.9305]
[1747757789610,0.04126488,166.18,166.14,0.03984967]
[1747757790312,0.04126488,166.18,166.14,62.51984967]
[1747757790514,6.05706488,166.18,166.14,68.53684967]
[1747757790914,0.04126488,166.18,166.14,62.51984967]
[1747757791116,0.04126488,166.18,166.16,6.0164]
[1747757791317,536.66500635,166.28,166.14,62.51984967]
[1747757791318,62.48,166.24,166.14,62.51984967]
[1747757791510,62.48,166.24,166.14,62.48]
[1747757791815,6.0136,166.25,166.15,16.20500635]
[1747757792011,66.4738,166.3,166.15,16.20500635]
[1747757792213,62.46,166.33,166.15,16.20500635]
[1747757792515,62.46,166.33,166.14,62.48]
[1747757792516,0.03838238,166.26,166.22,0.04471986]
[1747757792705,0.03838238,166.26,166.23,62.46]
[1747757793117,6.0112,166.31,166.23,62.46]
[1747757793314,582.66,166.36,166.23,78.66500635]
[1747757793512,0.49907,166.27,166.23,78.66500635]
[1747757793812,6.0101,166.34,166.28,6.012]
[1747757794118,0.04451215,166.33,166.29,0.03875834]
[1747757794912,6.0115,166.3,166.29,0.03875834]
[1747757795113,0.04451215,166.33,166.29,0.03875834]
[1747757795419,6.0115,166.3,166.29,0.03875834]
[1747757797212,6.02,166.3,166.21,64.5028]
[1747757797417,78.64500635,166.32,166.17,62.42]
[1747757797614,78.64500635,166.32,166.17,68.4361]
[1747757797810,78.64500635,166.32,166.17,62.42]
[1747757798219,0.04210669,166.26,166.23,0.04340162]
[1747757798519,62.46210669,166.26,166.23,0.04340162]
[1747757799219,18.09,166.23,166.03,1.34083238]
[1747757799424,16.1849095,166.15,166.03,1.34083238]
[1747757799614,66.4453,166.14,166.03,7.36203238]
[1747757799916,16.1849095,166.19,166.03,63.76083238]
[1747757800119,0.03871581,166.14,166.1,0.04306108]
[1747757800917,6.0177,166.13,166.1,0.04306108]
[1747757801117,0.03871581,166.14,166.1,0.04306108]
[1747757801421,0.03871581,166.14,166.1,6.06176108]
[1747757801623,0.03871581,166.14,166.1,0.04306108]
[1747757805320,0.03871581,166.14,166.12,6.018]
[1747757805526,0.03871581,166.14,166.1,0.04306108]
[1747757806019,0.03871581,166.14,166.13,6.0176]
[1747757809127,26.27902405,166.28,166.21,6.0147]
[1747757809334,1070.07,166.31,166.13,2.0729]
[1747757809335,62.44,166.24,166.13,2.0729]
[1747757809829,62.44,166.24,166.14,2.0713]
[1747757810127,0.03834826,166.21,166.2,6.0151]
[1747757815237,0.03834826,166.21,166.19,6.05324653]
[1747757815739,0.03834826,166.21,166.19,0.03804653]
[1747757816236,6.0151,166.2,166.19,0.03804653]
[1747757817039,6.05314826,166.21,166.19,0.03804653]
[1747757817239,0.03834826,166.21,166.19,0.03804653]